[Event "FIDE CB Open 2022"]
[Site "Ceske Budejovice"]
[Date "2022.07.08"]
[Round "8.16"]
[White "Kovalskyi, Roman"]
[Black "Walek, Petr"]
[Result "*"]
[ECO "B36"]
[WhiteElo "2056"]
[BlackElo "2237"]
[Annotator "RC"]
[PlyCount "77"]
[EventDate "2022.07.01"]
[EventType "swiss"]
[EventCountry "CZE"]
[SourceTitle "playchess.com"]
[Source "ChessBase"]
[SourceQuality "1"]
[TimeControl "40/5400+30:1800+30"]

1. e4 {[%emt 0:00:05]} c5 {[%emt 0:00:07]} 2. Nf3 {[%emt 0:00:05]} g6 {[%emt 0:00:20]} 3. d4 {[%emt 0:00:04]} cxd4 {[%emt 0:00:05]} 4. Nxd4 {[%emt 0:00:04]} Nc6 {[%emt 0:00:09]} 5. c4 {[%emt 0:00:04]} Nf6 {[%emt 0:02:11]} 6. Nc3 {[%emt 0:00:21]} d6 {[%emt 0:00:25]} 7. f3 {[%emt 0:00:06]} Nxd4 {[%emt 0:03:03]} 8. Qxd4 {[%emt 0:00:55]} Bg7 {[%emt 0:00:12]} 9. Be3 {[%emt 0:00:05]} O-O {[%emt 0:02:23]} 10. Qd2 {[%emt 0:00:05]} Qa5 {[%emt 0:10:52]} 11. Rc1 {[%emt 0:02:39]} Be6 {[%emt 0:06:55]} 12. Be2 {[%emt 0:06:26]} Rfc8 {[%emt 0:04:17]} 13. b3 {[%emt 0:00:25]} a6 {[%emt 0:05:04]} 14. Na4 {[%emt 0:01:06]} Qxd2+ {[%emt 0:01:22]} 15. Kxd2 {[%emt 0:00:39]} Nd7 {[%emt 0:06:47]} 16. g4 {[%emt 0:02:29]} Rab8 {[%emt 0:05:23]} 17. Nc3 {[%emt 0:02:35]} Nc5 {[%emt 0:05:01]} 18. b4 {[%emt 0:04:20]} Nd7 {[%emt 0:05:02]} 19. Nd5 {[%emt 0:02:50]} Bxd5 {[%emt 0:08:24]} 20. cxd5 {[%emt 0:00:15]} a5 {[%emt 0:07:24]} 21. bxa5 {[%emt 0:26:56]} Nc5 {[%emt 0:00:25]} 22. Bxc5 {[%emt 0:05:06]} dxc5 {[%emt 0:00:20]} 23. Rc4 {[%emt 0:00:14]} b5 {[%emt 0:04:48]} 24. axb6 {[%emt 0:01:03]} Rxb6 {[%emt 0:00:07]} 25. f4 {[%emt 0:12:20]} g5 {[%emt 0:09:57]} 26. fxg5 {[%emt 0:04:58]} Be5 {[%emt 0:00:33]} 27. Ke3 {[%emt 0:22:25]} Bd4+ {[%emt 0:05:02]} 28. Kf3 {[%emt 0:00:06]} Ra8 {[%emt 0:01:08]} 29. a4 {[%emt 0:04:30]} Rb3+ {[%emt 0:00:41]} 30. Kg2 {[%emt 0:00:05]} Rb2 {[%emt 0:01:28]} 31. Kf3 {[%emt 0:00:07]} Rab8 {[%emt 0:03:31]} 32. Rd1 {[%emt 0:01:38]} Ra2 {[%emt 0:00:27]} 33. Re1 {[%emt 0:01:23]} Rb3+ {[%emt 0:01:03]} 34. Kg2 {[%emt 0:00:16]} Re3 {[%emt 0:01:05]} 35. Kf1 {[%emt 0:00:03]} Rxe4 {[%emt 0:00:11]} 36. a5 {[%emt 0:01:06]} Rf4+ {[%emt 0:01:11]} 37. Kg2 {[%emt 0:00:01]} Rf2+ {[%emt 0:00:16]} 38. Kg3 {[%emt 0:00:20]} Ra3+ {[%emt 0:00:32]} 39. Kh4 {[%emt 0:00:08]} *

[Event "FIDE CB Open 2022"]
[Site "Ceske Budejovice"]
[Date "2022.07.08"]
[Round "8.17"]
[White "Lacina, Adolf"]
[Black "Rosol, Alexander"]
[Result "1-0"]
[ECO "C41"]
[WhiteElo "2225"]
[BlackElo "2001"]
[Annotator "RC"]
[PlyCount "33"]
[EventDate "2022.07.01"]
[EventType "swiss"]
[EventCountry "CZE"]
[SourceTitle "playchess.com"]
[Source "ChessBase"]
[SourceQuality "1"]
[TimeControl "40/5400+30:1800+30"]

1. e4 {[%emt 0:00:11]} d6 {[%emt 0:00:09]} 2. d4 {[%emt 0:00:16]} Nf6 {[%emt 0:00:05]} 3. Nc3 {[%emt 0:00:17]} e5 {[%emt 0:00:34]} 4. Nf3 {[%emt 0:00:16]} Nbd7 {[%emt 0:00:14]} 5. g4 {[%emt 0:00:56]} h6 {[%emt 0:01:28]} 6. Rg1 {[%emt 0:02:46]} Be7 {[%emt 0:04:00]} 7. h4 {[%emt 0:05:07]} exd4 {[%emt 0:12:55]} 8. Qxd4 {[%emt 0:03:52]} Ne5 {[%emt 0:04:10]} 9. Nxe5 {[%emt 0:01:30]} dxe5 {[%emt 0:00:20]} 10. Qxe5 {[%emt 0:00:43]} Nxg4 {[%emt 0:01:44]} 11. Rxg4 {[%emt 0:00:41]} Bxg4 {[%emt 0:06:25]} 12. Qxg7 {[%emt 0:00:13]} Bf6 {[%emt 0:06:55]} 13. Qxg4 {[%emt 0:00:14]} c6 {[%emt 0:03:59]} 14. Bh3 {[%emt 0:09:50]} Kf8 {[%emt 0:07:04]} 15. Be3 {[%emt 0:05:30]} Rg8 {[%emt 0:03:51]} 16. Bxh6+ {[%emt 0:02:25]} Ke7 {[%emt 0:00:06]} 17. Bg5 {[%emt 0:00:33]} 1-0

[Event "FIDE CB Open 2022"]
[Site "Ceske Budejovice"]
[Date "2022.07.08"]
[Round "8.18"]
[White "Hiermann, Dietmar"]
[Black "Sudrich, Radek"]
[Result "1-0"]
[ECO "C54"]
[WhiteElo "2224"]
[BlackElo "2049"]
[Annotator "RC"]
[PlyCount "33"]
[EventDate "2022.07.01"]
[EventType "swiss"]
[EventCountry "CZE"]
[SourceTitle "playchess.com"]
[Source "ChessBase"]
[SourceQuality "1"]
[TimeControl "40/5400+30:1800+30"]

1. e4 {[%emt 0:00:11]} e5 {[%emt 0:00:09]} 2. Nf3 {[%emt 0:00:04]} Nc6 {[%emt 0:00:06]} 3. Bc4 {[%emt 0:00:04]} Bc5 {[%emt 0:01:00]} 4. c3 {[%emt 0:00:05]} Nf6 {[%emt 0:00:51]} 5. d3 {[%emt 0:00:05]} h6 {[%emt 0:00:25]} 6. Nbd2 {[%emt 0:01:22]} d6 {[%emt 0:00:35]} 7. Nf1 {[%emt 0:00:19]} a6 {[%emt 0:02:44]} 8. Bb3 {[%emt 0:00:20]} O-O {[%emt 0:00:35]} 9. Ng3 {[%emt 0:00:04]} Kh7 {[%emt 0:05:04]} 10. O-O {[%emt 0:03:11]} Ng8 {[%emt 0:03:38]} 11. d4 {[%emt 0:02:09]} Ba7 {[%emt 0:00:47]} 12. dxe5 {[%emt 0:01:26]} Bg4 {[%emt 0:02:55]} 13. exd6 {[%emt 0:03:43]} Ne5 {[%emt 0:00:08]} 14. Bf4 {[%emt 0:05:20]} Bxf3 {[%emt 0:01:00]} 15. gxf3 {[%emt 0:00:02]} cxd6 {[%emt 0:00:10]} 16. Nf5 {[%emt 0:04:20]} g6 {[%emt 0:06:47]} 17. Nxd6 {[%emt 0:02:43]} 1-0

[Event "FIDE CB Open 2022"]
[Site "Ceske Budejovice"]
[Date "2022.07.08"]
[Round "8.19"]
[White "Vaculik, Martin"]
[Black "Borkovec, Milan"]
[Result "1/2-1/2"]
[ECO "A46"]
[WhiteElo "2284"]
[BlackElo "2188"]
[Annotator "RC"]
[PlyCount "47"]
[EventDate "2022.07.01"]
[EventType "swiss"]
[EventCountry "CZE"]
[SourceTitle "playchess.com"]
[Source "ChessBase"]
[SourceQuality "1"]
[TimeControl "40/5400+30:1800+30"]

1. Nf3 {[%emt 0:00:23]} Nf6 {[%emt 0:00:37]} 2. g3 {[%emt 0:01:21]} b5 {[%emt 0:02:05]} 3. Bg2 {[%emt 0:00:04]} Bb7 {[%emt 0:00:07]} 4. d4 {[%emt 0:00:07]} e6 {[%emt 0:01:07]} 5. O-O {[%emt 0:00:05]} Be7 {[%emt 0:00:11]} 6. b3 {[%emt 0:04:36]} O-O {[%emt 0:01:31]} 7. c4 {[%emt 0:00:59]} b4 {[%emt 0:06:29]} 8. Nbd2 {[%emt 0:03:30]} c5 {[%emt 0:05:34]} 9. Bb2 {[%emt 0:04:32]} Na6 {[%emt 0:00:59]} 10. dxc5 {[%emt 0:06:45]} Nxc5 {[%emt 0:01:02]} 11. Ne5 {[%emt 0:00:23]} Bxg2 {[%emt 0:01:34]} 12. Kxg2 {[%emt 0:00:31]} Qb6 {[%emt 0:04:08]} 13. Nd3 {[%emt 0:05:30]} Qb7+ {[%emt 0:04:25]} 14. Kg1 {[%emt 0:01:34]} Nfe4 {[%emt 0:19:40]} 15. Nxe4 {[%emt 0:08:27]} Nxe4 {[%emt 0:00:25]} 16. f3 {[%emt 0:00:41]} Nc5 {[%emt 0:01:43]} 17. Nxc5 {[%emt 0:05:38]} Bxc5+ {[%emt 0:00:15]} 18. Bd4 {[%emt 0:00:21]} Qb6 {[%emt 0:06:08]} 19. e3 {[%emt 0:02:46]} Rac8 {[%emt 0:06:36]} 20. Bxc5 {[%emt 0:01:57]} Qxc5 {[%emt 0:05:58]} 21. Qd4 {[%emt 0:01:18]} d5 {[%emt 0:07:30]} 22. Qxc5 {[%emt 0:00:44]} Rxc5 {[%emt 0:00:05]} 23. cxd5 {[%emt 0:00:02]} exd5 {[%emt 0:00:37]} 24. Rfd1 {[%emt 0:01:48]} 1/2-1/2

[Event "FIDE CB Open 2022"]
[Site "Ceske Budejovice"]
[Date "2022.07.08"]
[Round "8.20"]
[White "Radovic, Stefan"]
[Black "Vltavsky, Vladimir"]
[Result "1-0"]
[ECO "B22"]
[WhiteElo "2018"]
[BlackElo "2106"]
[Annotator "NA RC"]
[PlyCount "71"]
[EventDate "2022.07.01"]
[EventType "swiss"]
[EventCountry "CZE"]
[SourceTitle "playchess.com"]
[Source "ChessBase"]
[SourceQuality "1"]
[TimeControl "40/5400+30:1800+30"]

1. e4 {[%emt 0:00:02]} c5 {[%emt 0:11:13]} 2. c3 {[%emt 0:00:08]} d5 {[%emt 0:00:08]} 3. exd5 {[%emt 0:00:18]} Qxd5 {[%emt 0:00:05]} 4. d4 {[%emt 0:00:10]} Nc6 {[%emt 0:00:12]} 5. Nf3 {[%emt 0:01:48]} Bg4 {[%emt 0:00:37]} 6. dxc5 {[%emt 0:00:58]} Qxc5 {[%emt 0:01:10]} 7. Be3 {[%emt 0:01:04]} Qa5 {[%emt 0:00:57]} 8. Nbd2 {[%emt 0:07:35]} Nf6 {[%emt 0:01:58]} 9. Qb3 {[%emt 0:01:30]} Qc7 {[%emt 0:00:23]} 10. h3 {[%emt 0:12:32]} Be6 {[%emt 0:00:49]} 11. Bc4 {[%emt 0:14:22]} Bxc4 {[%emt 0:03:14]} 12. Qxc4 {[%emt 0:00:29]} e6 {[%emt 0:00:40]} 13. Nd4 {[%emt 0:03:51]} Be7 {[%emt 0:02:45]} 14. Nxc6 {[%emt 0:02:49]} Qxc6 {[%emt 0:01:42]} 15. Qxc6+ {[%emt 0:00:58]} bxc6 {[%emt 0:00:08]} 16. O-O-O {[%emt 0:05:46]} Nd5 {[%emt 0:00:42]} 17. Rhe1 {[%emt 0:03:45]} O-O {[%emt 0:02:34]} 18. Kc2 {[%emt 0:07:43]} Rfd8 {[%emt 0:02:48]} 19. Nb3 {[%emt 0:03:24]} Kf8 {[%emt 0:03:14]} 20. g3 {[%emt 0:05:28]} Ke8 {[%emt 0:01:58]} 21. Bc5 {[%emt 0:01:05]} Bxc5 {[%emt 0:02:15]} 22. Nxc5 {[%emt 0:00:06]} Ke7 {[%emt 0:02:56]} 23. Rd3 {[%emt 0:01:21]} Nb6 {[%emt 0:01:55]} 24. Red1 {[%emt 0:01:16]} Rd5 {[%emt 0:00:16]} 25. b4 {[%emt 0:04:51]} a5 {[%emt 0:02:11]} 26. Kb3 {[%emt 0:02:03]} a4+ {[%emt 0:03:25]} 27. Kc2 {[%emt 0:00:36]} g5 {[%emt 0:05:55]} 28. Nb7 {[%emt 0:08:02]} Nc4 {[%emt 0:01:20]} 29. Rd4 {[%emt 0:01:53]} Na3+ {[%emt 0:00:18]} 30. Kb2 {[%emt 0:01:05]} Nb5 {[%emt 0:01:06]} 31. R4d3 {[%emt 0:00:42]} Nd6 {[%emt 0:03:02]} 32. Nxd6 {[%emt 0:00:45]} Kxd6 {[%emt 0:00:05]} 33. c4 {[%emt 0:00:21]} Rxd3 {[%emt 0:00:05]} 34. Rxd3+ {[%emt 0:00:05]} Kc7 {[%emt 0:01:08]} 35. Kc3 {[%emt 0:02:58]} e5 {[%emt 0:01:32]} 36. Rf3 {[%emt 0:00:29]} 1-0

[Event "FIDE CB Open 2022"]
[Site "Ceske Budejovice"]
[Date "2022.07.08"]
[Round "8.21"]
[White "Placer, Sebastian"]
[Black "Hurtik, Matej"]
[Result "1-0"]
[ECO "B32"]
[WhiteElo "2062"]
[BlackElo "2018"]
[Annotator "NA"]
[PlyCount "73"]
[EventDate "2022.07.01"]
[EventType "swiss"]
[EventCountry "CZE"]
[SourceTitle "playchess.com"]
[Source "ChessBase"]
[SourceQuality "1"]
[TimeControl "40/5400+30:1800+30"]

1. e4 {[%emt 0:00:09]} c5 {[%emt 0:00:35]} 2. Nf3 {[%emt 0:00:07]} Nc6 {[%emt 0:00:05]} 3. d4 {[%emt 0:00:05]} cxd4 {[%emt 0:00:05]} 4. Nxd4 {[%emt 0:00:03]} e5 {[%emt 0:01:04]} 5. Nb5 {[%emt 0:00:05]} a6 {[%emt 0:00:16]} 6. Nd6+ {[%emt 0:00:06]} Bxd6 {[%emt 0:00:02]} 7. Qxd6 {[%emt 0:00:06]} Qf6 {[%emt 0:00:09]} 8. Qd1 {[%emt 0:00:57]} Nge7 {[%emt 0:00:58]} 9. Nc3 {[%emt 0:00:08]} Qg6 {[%emt 0:04:56]} 10. Be3 {[%emt 0:00:59]} d5 {[%emt 0:01:35]} 11. Nxd5 {[%emt 0:23:40]} Nxd5 {[%emt 0:00:13]} 12. Qxd5 {[%emt 0:00:05]} O-O {[%emt 0:00:17]} 13. f3 {[%emt 0:08:40]} Rd8 {[%emt 0:28:52]} 14. Qb3 {[%emt 0:00:40]} b5 {[%emt 0:02:17]} 15. c3 {[%emt 0:01:09]} Be6 {[%emt 0:14:42]} 16. Qc2 {[%emt 0:00:32]} Rac8 {[%emt 0:09:17]} 17. Qf2 {[%emt 0:01:03]} b4 {[%emt 0:24:41]} 18. Bxa6 {[%emt 0:01:58]} Ra8 {[%emt 0:00:39]} 19. Bb7 {[%emt 0:04:21]} Rxa2 {[%emt 0:00:07]} 20. O-O {[%emt 0:00:32]} Rxa1 {[%emt 0:06:30]} 21. Rxa1 {[%emt 0:00:04]} Bb3 {[%emt 0:00:07]} 22. Bb6 {[%emt 0:06:43]} Re8 {[%emt 0:02:59]} 23. Qc5 {[%emt 0:00:55]} Nd8 {[%emt 0:00:35]} 24. Qxb4 {[%emt 0:17:13]} Be6 {[%emt 0:00:40]} 25. Bxd8 {[%emt 0:07:02]} Rxd8 {[%emt 0:00:08]} 26. Ra8 {[%emt 0:00:37]} Qg5 {[%emt 0:01:04]} 27. Rxd8+ {[%emt 0:00:10]} Qxd8 {[%emt 0:00:02]} 28. Bd5 {[%emt 0:00:20]} h5 {[%emt 0:00:40]} 29. Bxe6 {[%emt 0:05:35]} Qd1+ {[%emt 0:00:05]} 30. Kf2 {[%emt 0:00:05]} Qd2+ {[%emt 0:00:21]} 31. Kg3 {[%emt 0:04:00]} Qf4+ {[%emt 0:00:59]} 32. Kh3 {[%emt 0:04:50]} g5 {[%emt 0:00:29]} 33. Qb8+ {[%emt 0:00:33]} Kg7 {[%emt 0:00:02]} 34. g3 {[%emt 0:03:36]} g4+ {[%emt 0:00:53]} 35. fxg4 {[%emt 0:00:11]} hxg4+ {[%emt 0:00:32]} 36. Kh4 {[%emt 0:02:14]} fxe6 {[%emt 0:00:57]} 37. gxf4 {[%emt 0:00:10]} 1-0

[Event "FIDE CB Open 2022"]
[Site "Ceske Budejovice"]
[Date "2022.07.08"]
[Round "8.22"]
[White "Simek, Petr"]
[Black "Saravanan Durga"]
[Result "1-0"]
[ECO "E01"]
[WhiteElo "2348"]
[BlackElo "1908"]
[Annotator "RC"]
[PlyCount "179"]
[EventDate "2022.07.01"]
[EventType "swiss"]
[EventCountry "CZE"]
[SourceTitle "playchess.com"]
[Source "ChessBase"]
[SourceQuality "1"]
[TimeControl "40/5400+30:1800+30"]

1. d4 {[%emt 0:00:03]} Nf6 {[%emt 0:00:10]} 2. c4 {[%emt 0:00:07]} e6 {[%emt 0:00:04]} 3. Nf3 {[%emt 0:00:07]} d5 {[%emt 0:00:07]} 4. g3 {[%emt 0:00:10]} Bb4+ {[%emt 0:00:10]} 5. Bd2 {[%emt 0:00:20]} Bd6 {[%emt 0:00:09]} 6. Nc3 {[%emt 0:00:34]} O-O {[%emt 0:00:18]} 7. Bg2 {[%emt 0:02:11]} dxc4 {[%emt 0:00:53]} 8. e4 {[%emt 0:02:10]} Be7 {[%emt 0:00:05]} 9. Qe2 {[%emt 0:02:01]} a6 {[%emt 0:02:25]} 10. a4 {[%emt 0:00:48]} c5 {[%emt 0:03:08]} 11. dxc5 {[%emt 0:01:29]} Bxc5 {[%emt 0:00:51]} 12. Qxc4 {[%emt 0:00:42]} Qb6 {[%emt 0:01:25]} 13. O-O {[%emt 0:00:11]} Ng4 {[%emt 0:05:12]} 14. Qe2 {[%emt 0:03:54]} Nc6 {[%emt 0:18:05]} 15. a5 {[%emt 0:09:30]} Nxa5 {[%emt 0:29:46]} 16. Na4 {[%emt 0:11:34]} Bxf2+ {[%emt 0:00:10]} 17. Rxf2 {[%emt 0:00:57]} Qxf2+ {[%emt 0:00:25]} 18. Qxf2 {[%emt 0:00:04]} Nxf2 {[%emt 0:00:03]} 19. Kxf2 {[%emt 0:03:42]} Nb3 {[%emt 0:03:15]} 20. Nb6 {[%emt 0:00:15]} Nxa1 {[%emt 0:05:28]} 21. Nxa8 {[%emt 0:00:15]} b5 {[%emt 0:04:45]} 22. Nb6 {[%emt 0:01:54]} Bb7 {[%emt 0:06:54]} 23. Ne5 {[%emt 0:25:15]} Rd8 {[%emt 0:01:55]} 24. Bc3 {[%emt 0:00:46]} Nb3 {[%emt 0:03:32]} 25. Ke3 {[%emt 0:04:18]} Rd6 {[%emt 0:09:16]} 26. Ned7 {[%emt 0:00:18]} Bc6 {[%emt 0:03:05]} 27. e5 {[%emt 0:00:58]} Rxd7 {[%emt 0:00:53]} 28. Bxc6 {[%emt 0:00:05]} Rc7 {[%emt 0:00:00]} 29. Be4 {[%emt 0:10:00]} a5 {[%emt 0:00:32]} 30. Ke2 {[%emt 0:07:07]} b4 {[%emt 0:00:28]} 31. Be1 {[%emt 0:00:03]} Rc5 {[%emt 0:01:07]} 32. Nd7 {[%emt 0:00:21]} Rc4 {[%emt 0:00:50]} 33. Ke3 {[%emt 0:03:15]} Rc1 {[%emt 0:00:31]} 34. Ke2 {[%emt 0:00:17]} Rc4 {[%emt 0:00:14]} 35. Ke3 {[%emt 0:06:56]} Rc1 {[%emt 0:00:02]} 36. Kf2 {[%emt 0:00:19]} Nc5 {[%emt 0:01:10]} 37. Nxc5 {[%emt 0:00:39]} Rxc5 {[%emt 0:00:01]} 38. Ke3 {[%emt 0:00:35]} Rxe5 {[%emt 0:00:04]} 39. Kd4 {[%emt 0:00:09]} Rh5 {[%emt 0:01:11]} 40. h4 {[%emt 0:00:12]} Rb5 {[%emt 0:00:33]} 41. b3 {[%emt 0:31:21]} h6 {[%emt 0:30:54]} 42. g4 {[%emt 0:01:56]} f6 {[%emt 0:00:00]} 43. Bg3 {[%emt 0:00:00]} e5+ {[%emt 0:00:00]} 44. Kc4 {[%emt 0:00:00]} Rb8 {[%emt 0:00:00]} 45. Bf2 {[%emt 0:00:00]} Kf7 {[%emt 0:00:00]} 46. h5 {[%emt 0:00:00]} Ke6 {[%emt 0:00:00]} 47. Ba7 {[%emt 0:00:00]} Rc8+ {[%emt 0:00:00]} 48. Bc5 {[%emt 0:00:00]} Rb8 {[%emt 0:00:00]} 49. Bf5+ {[%emt 0:00:00]} Kf7 {[%emt 0:00:00]} 50. Bd6 {[%emt 0:00:00]} Ra8 {[%emt 0:04:06]} 51. Kb5 {[%emt 0:00:00]} Rd8 {[%emt 0:00:55]} 52. Bc5 {[%emt 0:00:00]} Ra8 {[%emt 0:00:41]} 53. Bb6 {[%emt 0:00:00]} Ke7 {[%emt 0:00:30]} 54. Bxa5 {[%emt 0:00:00]} Kd6 {[%emt 0:00:22]} 55. Be4 {[%emt 0:00:00]} Rb8+ {[%emt 0:00:20]} 56. Kc4 {[%emt 0:00:00]} Rc8+ {[%emt 0:00:50]} 57. Kxb4 {[%emt 0:00:00]} Rc1 {[%emt 0:00:37]} 58. Kb5 {[%emt 0:00:00]} Rg1 {[%emt 0:00:25]} 59. Bb4+ {[%emt 0:00:00]} Ke6 {[%emt 0:00:33]} 60. Bf5+ {[%emt 0:00:00]} Kd5 {[%emt 0:00:27]} 61. Bf8 {[%emt 0:00:00]} e4 {[%emt 0:00:11]} 62. Bxg7 {[%emt 0:00:00]} e3 {[%emt 0:00:43]} 63. Bxh6 {[%emt 0:00:00]} e2 {[%emt 0:00:02]} 64. Bd2 {[%emt 0:00:00]} e1=Q {[%emt 0:00:40]} 65. Bxe1 {[%emt 0:00:00]} Rxe1 {[%emt 0:00:03]} 66. h6 {[%emt 0:00:00]} Re8 {[%emt 0:00:12]} 67. h7 {[%emt 0:00:35]} Rh8 {[%emt 0:00:13]} 68. Kb6 {[%emt 0:00:32]} Kd6 {[%emt 0:00:06]} 69. Kb7 {[%emt 0:00:38]} Rf8 {[%emt 0:01:39]} 70. b4 {[%emt 0:00:13]} Rf7+ {[%emt 0:00:50]} 71. Kb6 {[%emt 0:00:04]} Rf8 {[%emt 0:00:03]} 72. b5 {[%emt 0:00:04]} Rh8 {[%emt 0:00:51]} 73. Kb7 {[%emt 0:00:41]} Rf8 {[%emt 0:00:50]} 74. b6 {[%emt 0:02:28]} Re8 {[%emt 0:00:43]} 75. Bg6 {[%emt 0:00:25]} Rh8 {[%emt 0:00:09]} 76. Ka7 {[%emt 0:00:24]} Kd7 {[%emt 0:00:49]} 77. Bf5+ {[%emt 0:00:26]} Kc6 {[%emt 0:00:20]} 78. b7 {[%emt 0:00:05]} Kc7 {[%emt 0:00:13]} 79. Bc8 {[%emt 0:00:19]} Kc6 {[%emt 0:00:52]} 80. b8=Q {[%emt 0:00:12]} Rxh7+ {[%emt 0:00:02]} 81. Bb7+ {[%emt 0:00:20]} Kc5 {[%emt 0:00:29]} 82. Qf8+ {[%emt 0:00:16]} Kb5 {[%emt 0:00:26]} 83. Qxf6 {[%emt 0:00:50]} Rc7 {[%emt 0:00:15]} 84. Qb6+ {[%emt 0:00:25]} Ka4 {[%emt 0:00:05]} 85. Qxc7 {[%emt 0:00:07]} Ka3 {[%emt 0:00:02]} 86. Qb6 {[%emt 0:00:15]} Ka2 {[%emt 0:00:04]} 87. Be4 {[%emt 0:00:18]} Ka3 {[%emt 0:00:06]} 88. Bc2 {[%emt 0:00:12]} Ka2 {[%emt 0:00:04]} 89. Qb3+ {[%emt 0:00:04]} Ka1 {[%emt 0:00:03]} 90. Qb1# {[%emt 0:00:06]} 1-0

[Event "FIDE CB Open 2022"]
[Site "Ceske Budejovice"]
[Date "2022.07.08"]
[Round "8.23"]
[White "Ondrejat, Miroslav"]
[Black "Bartos, Jan"]
[Result "*"]
[ECO "E94"]
[WhiteElo "1903"]
[BlackElo "2142"]
[Annotator "NA RC"]
[PlyCount "60"]
[EventDate "2022.07.01"]
[EventType "swiss"]
[EventCountry "CZE"]
[SourceTitle "playchess.com"]
[Source "ChessBase"]
[SourceQuality "1"]
[TimeControl "40/5400+30:1800+30"]

1. e4 {[%emt 0:00:04]} g6 {[%emt 0:00:07]} 2. d4 {[%emt 0:00:05]} Bg7 {[%emt 0:00:04]} 3. Nf3 {[%emt 0:00:18]} d6 {[%emt 0:00:10]} 4. c4 {[%emt 0:01:13]} Nf6 {[%emt 0:00:24]} 5. Nc3 {[%emt 0:00:02]} O-O {[%emt 0:00:12]} 6. Be2 {[%emt 0:00:36]} Nbd7 {[%emt 0:00:23]} 7. O-O {[%emt 0:00:26]} e5 {[%emt 0:00:12]} 8. d5 {[%emt 0:08:53]} Nc5 {[%emt 0:00:19]} 9. Qc2 {[%emt 0:01:09]} a5 {[%emt 0:00:06]} 10. Ne1 {[%emt 0:05:17]} Ne8 {[%emt 0:06:52]} 11. Nd3 {[%emt 0:01:47]} b6 {[%emt 0:01:53]} 12. f3 {[%emt 0:05:39]} f5 {[%emt 0:01:04]} 13. Nf2 {[%emt 0:00:19]} f4 {[%emt 0:01:31]} 14. Bd2 {[%emt 0:00:34]} g5 {[%emt 0:01:07]} 15. b3 {[%emt 0:00:37]} h5 {[%emt 0:03:47]} 16. a3 {[%emt 0:00:35]} Nf6 {[%emt 0:02:02]} 17. h3 {[%emt 0:06:33]} Rf7 {[%emt 0:04:17]} 18. b4 {[%emt 0:00:10]} Nb7 {[%emt 0:00:19]} 19. Na4 {[%emt 0:15:49]} Bf8 {[%emt 0:26:23]} 20. c5 {[%emt 0:05:08]} dxc5 {[%emt 0:02:30]} 21. bxc5 {[%emt 0:00:31]} Nxc5 {[%emt 0:01:22]} 22. d6 {[%emt 0:04:06]} Bxd6 {[%emt 0:09:39]} 23. Nxc5 {[%emt 0:04:14]} Bxc5 {[%emt 0:00:26]} 24. Bc4 {[%emt 0:00:12]} g4 {[%emt 0:05:28]} 25. Bxf7+ {[%emt 0:08:29]} Kxf7 {[%emt 0:00:05]} 26. Bxf4 {[%emt 0:00:31]} exf4 {[%emt 0:01:13]} 27. e5 {[%emt 0:00:07]} gxh3 {[%emt 0:06:21]} 28. Qc4+ {[%emt 0:05:56]} Nd5 {[%emt 0:04:25]} 29. Rfd1 {[%emt 0:11:15]} Qg5 {[%emt 0:03:34]} 30. Qxd5+ {[%emt 0:02:12]} Be6 {[%emt 0:00:05]} *